fUST/lending_fUST_20240508
["ID","MTS","AMOUNT","RATE_DAILY","PERIOD"]
[326621181,1715155668009,-500.0,0.00021369,2]
[326621182,1715155668032,-519.59,0.00021369,2]
[326621183,1715155668055,-500.0,0.00021369,2]
[326621184,1715155668078,-657.29,0.00021369,2]
[326621185,1715155668098,-1484.1,0.00021369,2]
[326621186,1715155668120,-500.0,0.00021369,2]
[326621187,1715155668141,-500.0,0.00021369,2]
[326621188,1715155668163,-544.7,0.00021369,2]
[326621189,1715155668186,-1011.52,0.00021369,2]
[326621190,1715155668208,-500.0,0.00021369,2]
[326621191,1715155668229,-941.6,0.00021369,2]
[326621192,1715155668251,-3794.62,0.00021369,2]
[326621193,1715155668272,-500.0,0.00021369,2]
[326621194,1715155668297,-502.68,0.00021369,2]
[326621195,1715155668320,-500.0,0.00021369,2]
[326621196,1715155668970,-798.95,0.00021369,2]
[326621197,1715155669598,-500.0,0.00021369,2]
[326621198,1715155669653,-500.0,0.00021369,2]
[326621199,1715155669689,-3251.72977445,0.00021375,7]
[326621200,1715155669715,-150.0,0.00021427,2]
[326621201,1715155670204,-5600.0,0.000215,6]
[326621202,1715155670839,-160.0,0.000216,2]
[326621203,1715155671496,-295.3746,0.000216,2]
[326621204,1715155671538,-170.241775,0.000216,2]
[326621205,1715155671565,-539.80773188,0.00021643,2]
[326621206,1715155671606,-519.59,0.00021643,2]
[326621207,1715155672144,-500.0,0.00021643,2]
[326621208,1715155672758,-657.29,0.00021643,2]
[326621209,1715155673372,-1484.1,0.00021643,2]
[326621210,1715155673998,-500.0,0.00021643,2]
[326621211,1715155675122,-500.0,0.00021643,2]
[326621212,1715155676424,-150.0,0.00021643,2]
[326621213,1715155677694,-544.7,0.00021643,2]
[326621214,1715155678995,-1011.52,0.00021643,2]
[326621215,1715155679016,-500.0,0.00021643,2]
[326621216,1715155679042,-941.6,0.00021643,2]
[326621217,1715155679066,-3794.62,0.00021643,2]
[326621218,1715155679092,-500.0,0.00021643,2]
[326621219,1715155679112,-502.68,0.00021643,2]
[326621220,1715155679132,-500.0,0.00021643,2]
[326621221,1715155679153,-798.95,0.00021643,2]
[326621222,1715155679174,-500.0,0.00021643,2]
[326621223,1715155679194,-500.0,0.00021643,2]
[326621224,1715155679214,-1000.0,0.000218,4]
[326621225,1715155679234,-150.0,0.00021859,2]
[326621226,1715155679254,-155.78973166,0.0002191,2]
[326621227,1715155679273,-172.39015127,0.00021914,2]
[326621228,1715155679293,-248.01553818,0.00021915,2]
[326621229,1715155679315,-500.0,0.00021917,2]
[326621230,1715155679334,-300.0,0.00021917,2]
[326621231,1715155679354,-300.0,0.00021917,2]
[326621232,1715155679374,-300.0,0.00021917,2]
[326621233,1715155679393,-300.0,0.00021917,2]
[326621234,1715155679413,-300.0,0.00021917,2]
[326621235,1715155679434,-300.0,0.00021917,2]
[326621236,1715155679454,-300.0,0.00021917,2]
[326621237,1715155679473,-300.0,0.00021917,2]
[326621238,1715155679493,-300.0,0.00021917,2]
[326621239,1715155679513,-300.0,0.00021917,2]
[326621240,1715155679533,-300.0,0.00021917,2]
[326621241,1715155679553,-519.59,0.00021917,2]
[326621242,1715155679577,-500.0,0.00021917,2]
[326621243,1715155679599,-657.29,0.00021917,2]
[326621244,1715155679619,-1484.1,0.00021917,2]
[326621245,1715155679641,-447.52825078,0.00021917,2]
[326621246,1715155679663,-500.0,0.00021917,2]
[326621247,1715155679686,-544.7,0.00021917,2]
[326621248,1715155679708,-1011.52,0.00021917,2]
[326621249,1715155679730,-590.36074177,0.00021917,2]
[326621250,1715155679754,-941.6,0.00021917,2]
[326621251,1715155679776,-3794.62,0.00021917,2]
[326621252,1715155679798,-500.0,0.00021917,2]
[326621253,1715155679822,-502.68,0.00021917,2]
[326621254,1715155679847,-500.0,0.00021917,2]
[326621255,1715155679869,-798.95,0.00021917,2]
[326621256,1715155679891,-500.0,0.00021917,2]
[326621257,1715155679912,-500.0,0.00021917,2]
[326621258,1715155679933,-166.666666,0.00021918,2]
[326621259,1715155679954,-10000.0,0.00021918,2]
[326621260,1715155679975,-430.247173,0.00021918,2]
[326621261,1715155679995,-430.247173,0.00021918,2]
[326621262,1715155680016,-430.247173,0.00021918,2]
[326621263,1715155680155,-430.247173,0.00021918,2]
[326621264,1715155680177,-430.247173,0.00021918,2]
[326621265,1715155680198,-430.247173,0.00021918,2]
[326621266,1715155680218,-159.34994831,0.00022,2]
[326621267,1715155680239,-12774.11705581,0.00022,2]
[326621268,1715155680260,-154.76784823,0.00022,2]
[326621269,1715155680280,-150.0,0.00022076,2]
[326621270,1715155680301,-620.00000002,0.00022121,2]
[326621271,1715155680325,-508.34654015,0.00022191,2]
[326621272,1715155680346,-300.0,0.00022191,2]
[326621273,1715155680368,-519.59,0.00022191,2]
[326621274,1715155680391,-500.0,0.00022191,2]
[326621275,1715155680415,-657.29,0.00022191,2]
[326621276,1715155680436,-1484.1,0.00022191,2]
[326621277,1715155680458,-500.0,0.00022191,2]
[326621278,1715155680481,-544.7,0.00022191,2]
[326621279,1715155680505,-1011.52,0.00022191,2]
[326621280,1715155680528,-941.6,0.00022191,2]
[326621281,1715155680552,-3794.62,0.00022191,2]
[326621282,1715155680578,-500.0,0.00022191,2]
[326621283,1715155680599,-502.68,0.00022191,2]
[326621284,1715155681265,-500.0,0.00022191,2]
[326621285,1715155681287,-798.95,0.00022191,2]
[326621286,1715155681312,-500.0,0.00022191,2]
[326621287,1715155681333,-500.0,0.00022191,2]
[326621288,1715155681354,-281.378073,0.00022264,2]
[326621289,1715155681375,-251.727584,0.00022264,2]
[326621290,1715155681396,-330.057773,0.00022264,2]
[326621291,1715155681416,-150.0,0.00022292,2]
[326621292,1715155681436,-1064.94982909,0.000223,2]
[326621293,1715155681456,-166.666666,0.00022431,2]
[326621294,1715155681477,-300.0,0.00022465,2]
[326621295,1715155681498,-519.59,0.00022465,2]
[326621296,1715155681519,-500.0,0.00022465,2]
[326621297,1715155681541,-657.29,0.00022465,2]
[326621298,1715155681565,-1484.1,0.00022465,2]
[326621299,1715155681589,-500.0,0.00022465,2]
[326621300,1715155681610,-544.7,0.00022465,2]
[326621301,1715155681632,-1011.52,0.00022465,2]
[326621302,1715155681653,-941.6,0.00022465,2]
[326621303,1715155681675,-3794.62,0.00022465,2]
[326621304,1715155681698,-500.0,0.00022465,2]
[326621305,1715155681719,-502.68,0.00022465,2]
[326621306,1715155681740,-500.0,0.00022465,2]
[326621307,1715155681765,-798.95,0.00022465,2]
[326621308,1715155681787,-500.0,0.00022465,2]
[326621309,1715155681811,-500.0,0.00022465,2]
[326621310,1715155681833,-20000.0,0.00022477,5]
[326621311,1715155681854,-150.0,0.00022509,2]
[326621312,1715155681876,-151.0,0.00022689,2]
[326621313,1715155682795,-150.0,0.00022725,2]
[326621314,1715155683729,-300.0,0.00022739,2]
[326621315,1715155684941,-519.59,0.00022739,2]
[326621316,1715155686178,-500.0,0.00022739,2]
[326621317,1715155686868,-657.29,0.00022739,2]
[326621318,1715155687466,-1484.1,0.00022739,2]
[326621319,1715155688152,-500.0,0.00022739,2]
[326621320,1715155688190,-544.7,0.00022739,2]
[326621321,1715155688227,-1011.52,0.00022739,2]
[326621322,1715155688799,-941.6,0.00022739,2]
[326621323,1715155688833,-3794.62,0.00022739,2]
[326621324,1715155688856,-500.0,0.00022739,2]
[326621325,1715155690093,-502.68,0.00022739,2]
[326621326,1715155690808,-500.0,0.00022739,2]
[326621327,1715155690833,-798.95,0.00022739,2]
[326621328,1715155690855,-500.0,0.00022739,2]
[326621329,1715155690876,-500.0,0.00022739,2]
[326621330,1715155690897,-40000.0,0.000229,5]
[326621331,1715155690918,-430.247173,0.000229,2]
[326621332,1715155690941,-430.247173,0.000229,2]
[326621333,1715155690962,-150.0,0.00022942,2]
[326621334,1715155690982,-166.666666,0.00022944,2]
[326621335,1715155691003,-714.70481595,0.00023,2]
[326621336,1715155691024,-154.67518212,0.00023,2]
[326621337,1715155691044,-5013.13763704,0.00023,2]
[326621338,1715155691066,-280.0,0.00023,2]
[326621339,1715155691086,-280.0,0.00023,2]
[326621340,1715155691108,-357.0,0.00023,2]
[326621341,1715155691128,-295.3746,0.00023,2]
[326621342,1715155691148,-300.0,0.00023013,2]
[326621343,1715155691168,-519.59,0.00023013,2]
[326621344,1715155691188,-500.0,0.00023013,2]
[326621345,1715155691210,-657.29,0.00023013,2]
[326621346,1715155691230,-1484.1,0.00023013,2]
[326621347,1715155691251,-500.0,0.00023013,2]
[326621348,1715155691275,-544.7,0.00023013,2]
[326621349,1715155691297,-1011.52,0.00023013,2]
[326621350,1715155691336,-941.6,0.00023013,2]
[326621351,1715155691362,-3794.62,0.00023013,2]
[326621352,1715155691385,-500.0,0.00023013,2]
[326621353,1715155691409,-502.68,0.00023013,2]
[326621354,1715155691433,-500.0,0.00023013,2]
[326621355,1715155691455,-798.95,0.00023013,2]
[326621356,1715155691478,-500.0,0.00023013,2]
[326621357,1715155691500,-500.0,0.00023013,2]
[326621358,1715155691524,-430.247173,0.00023108,2]
[326621359,1715155691545,-430.247173,0.00023108,2]
[326621360,1715155691569,-733.19786543,0.00023108,2]
[326621361,1715155691593,-117617.66653529,0.00023109,10]
[326621427,1715155838489,-769.97551352,0.00017998,2]
[326621433,1715155838499,-480.2207562,0.00018509,2]
[326621438,1715155838509,-894.24108922,0.00018655,2]
[326621442,1715155838518,-379.96231687,0.00018656,2]
[326621446,1715155838528,-604.62485122,0.00018656,2]
[326621450,1715155838537,-162.316488,0.00018657,2]
[326621451,1715155838547,-239.94305837,0.00019,2]
[326621454,1715155838557,-96.24205083,0.00019177,2]
[326621459,1715155838569,-93.40416898,0.00019177,2]
[326621463,1715155838578,-437.27694571,0.00019178,2]
[326621467,1715155838591,-62.72305429,0.00019178,2]
[326621469,1715155838607,-500.0,0.00019178,2]
[326621472,1715155838616,-342.6954344,0.00019178,2]
[326621474,1715155838627,-275.7245656,0.00019178,2]
[326621477,1715155838639,-500.0,0.00019178,2]
[326621479,1715155838649,-500.0,0.00019178,2]
[326621481,1715155838658,-169.86227613,0.00019178,2]
[326621492,1715155841206,-330.13772387,0.00019178,2]
[326621493,1715155841215,-500.0,0.00019178,2]
[326621494,1715155841225,-500.0,0.00019178,2]
[326621495,1715155841234,-500.0,0.00019178,2]
[326621496,1715155841243,-500.0,0.00019178,2]
[326621498,1715155841253,-1581.09,0.00019178,2]
[326621500,1715155841262,-500.0,0.00019178,2]
[326621503,1715155841271,-500.0,0.00019178,2]
[326621504,1715155841280,-500.0,0.00019178,2]
[326621506,1715155841290,-500.0,0.00019178,2]
[326621508,1715155841299,-500.0,0.00019178,2]
[326621510,1715155841308,-553.27,0.00019178,2]
[326621511,1715155841318,-618.42,0.00019452,2]
[326621512,1715155841327,-500.0,0.00019452,2]
[326621513,1715155841336,-500.0,0.00019452,2]
[326621514,1715155841345,-500.0,0.00019452,2]
[326621515,1715155841355,-500.0,0.00019452,2]
[326621516,1715155841364,-500.0,0.00019452,2]
[326621517,1715155841383,-500.0,0.00019452,2]
[326621518,1715155841393,-500.0,0.00019452,2]
[326621519,1715155841403,-1581.09,0.00019452,2]
[326621520,1715155841413,-500.0,0.00019452,2]
[326621521,1715155841431,-500.0,0.00019452,2]
[326621522,1715155841449,-474.90207964,0.00019452,2]
[326621559,1715155847254,-25.09792036,0.00019452,2]
[326621560,1715155847265,-500.0,0.00019452,2]
[326621561,1715155847275,-500.0,0.00019452,2]
[326621562,1715155847285,-618.42,0.00019726,2]
[326621563,1715155847295,-500.0,0.00019726,2]
[326621564,1715155847305,-500.0,0.00019726,2]
[326621565,1715155847315,-500.0,0.00019726,2]
[326621566,1715155847326,-500.0,0.00019726,2]
[326621567,1715155847336,-500.0,0.00019726,2]
[326621568,1715155847346,-500.0,0.00019726,2]
[326621569,1715155847357,-500.0,0.00019726,2]
[326621570,1715155847367,-1295.38207964,0.00019726,2]
[326621571,1715155847380,-285.70792036,0.00019726,2]
[326621572,1715155847390,-500.0,0.00019726,2]
[326621573,1715155847401,-500.0,0.00019726,2]
[326621574,1715155847411,-369.39756969,0.00019726,2]
[326621575,1715155847421,-221.9752334,0.00019726,2]
[326621576,1715155847434,-278.0247666,0.00019726,2]
[326621577,1715155847446,-352.77069049,0.00019726,2]
[326621644,1715155848020,-500.0,0.00019178,2]
[326621646,1715155848029,-147.22930951,0.00019726,2]
[326621648,1715155848038,-171.36576708,0.00019899,2]
[326621650,1715155848047,-257.65475353,0.00019899,2]
[326621652,1715155848056,-500.0,0.00019899,2]
[326621654,1715155848066,-273.86644323,0.00019899,2]
[326621656,1715155848075,-500.0,0.00019899,2]
[326621658,1715155848084,-2000.0,0.000199,2]
[326621660,1715155848094,-55555.0,0.000199,2]
[326621662,1715155848103,-1623.43487535,0.00019998,2]
[326621664,1715155848112,-816.50766108,0.00019998,2]
[326621666,1715155848121,-793.57313981,0.00019998,2]
[326621668,1715155848130,-315.23619623,0.00019999,2]
[326621669,1715155848139,-563.2,0.00019999,2]
[326621671,1715155848150,-500.0,0.00019999,2]
[326621673,1715155848159,-12593.35233559,0.0002,2]
[326621675,1715155848168,-154.62889066,0.0002,2]
[326621677,1715155848177,-160.0,0.0002,2]
[326621679,1715155848186,-177.74788995,0.0002,2]
[326621681,1715155848197,-154.62889066,0.0002,2]
[326621683,1715155848206,-163.20360463,0.0002,2]
[326621685,1715155848216,-464.53869872,0.0002,2]
[326621687,1715155848225,-80000.0,0.0002,2]
[326621689,1715155848234,-129572.93196026,0.0002,2]
[326621691,1715155848243,-400.0,0.0002,2]
[326621693,1715155848253,-634.22759211,0.0002,2]
[326621695,1715155848262,-618.42,0.0002,2]
[326621697,1715155848271,-533.64411992,0.0002,2]
[326621699,1715155848280,-500.0,0.0002,2]
[326621701,1715155848290,-14234.12683222,0.0002,5]
[326621703,1715155848298,-500.0,0.0002,2]
[326621705,1715155848308,-500.0,0.0002,2]
[326621707,1715155848317,-500.0,0.0002,2]
[326621709,1715155848326,-500.0,0.0002,2]
[326621711,1715155848336,-500.0,0.0002,2]
[326621714,1715155848345,-1581.09,0.0002,2]
[326621715,1715155848355,-500.0,0.0002,2]
[326621717,1715155848364,-500.0,0.0002,2]
[326621719,1715155848373,-500.0,0.0002,2]
[326621721,1715155848383,-500.0,0.0002,2]
[326621723,1715155848391,-618.42,0.00020273,2]
[326621725,1715155848401,-500.0,0.00020273,2]
[326621727,1715155848410,-500.0,0.00020273,2]
[326621729,1715155848419,-500.0,0.00020273,2]
[326621731,1715155848428,-500.0,0.00020273,2]
[326621733,1715155848437,-500.0,0.00020273,2]
[326621735,1715155848448,-500.0,0.00020273,2]
[326621737,1715155848458,-1581.09,0.00020273,2]
[326621739,1715155848467,-500.0,0.00020273,2]
[326621741,1715155848477,-500.0,0.00020273,2]
[326621743,1715155848486,-500.0,0.00020273,2]
[326621745,1715155848496,-500.0,0.00020273,2]
[326621747,1715155848511,-500.0,0.00020273,2]
[326621749,1715155848521,-150664.95217137,0.00020547,2]
[326621751,1715155848531,-618.42,0.00020547,2]
[326621753,1715155848541,-500.0,0.00020547,2]
[326621755,1715155848550,-500.0,0.00020547,2]
[326621757,1715155848559,-500.0,0.00020547,2]
[326621759,1715155848569,-500.0,0.00020547,2]
[326621761,1715155848577,-500.0,0.00020547,2]
[326621763,1715155848587,-500.0,0.00020547,2]
[326621765,1715155848597,-1581.09,0.00020547,2]
[326621767,1715155848606,-500.0,0.00020547,2]
[326621769,1715155848616,-222.28415474,0.00020547,2]
[326621771,1715155848624,-500.0,0.00020547,2]
[326621773,1715155848634,-500.0,0.00020547,2]
[326621775,1715155848646,-586.38,0.00020547,2]
[326621777,1715155848656,-618.42,0.00020821,2]
[326621779,1715155848665,-500.0,0.00020821,2]
[326621781,1715155848674,-500.0,0.00020821,2]
[326621784,1715155848694,-500.0,0.00020821,2]
[326621786,1715155848706,-500.0,0.00020821,2]
[326621788,1715155848716,-607.74548904,0.00020821,2]
[326621790,1715155848727,-500.0,0.00020821,2]
[326621792,1715155848737,-1581.09,0.00020821,2]
[326621794,1715155848746,-500.0,0.00020821,2]
[326621796,1715155848756,-500.0,0.00020821,2]
[326621798,1715155848766,-500.0,0.00020821,2]
[326621800,1715155848776,-7140.5470028,0.00021009,2]
[326621802,1715155848786,-618.42,0.00021095,2]
[326621804,1715155848797,-500.0,0.00021095,2]
[326621806,1715155848809,-500.0,0.00021095,2]
[326621808,1715155848818,-500.0,0.00021095,2]
[326621810,1715155848828,-500.0,0.00021095,2]
[326621813,1715155848839,-500.0,0.00021095,2]
[326621815,1715155848849,-1581.09,0.00021095,2]
[326621817,1715155848859,-500.0,0.00021095,2]
[326621819,1715155848868,-500.0,0.00021095,2]
[326621821,1715155848879,-500.0,0.00021095,2]
[326621823,1715155848889,-618.42,0.00021369,2]
[326621825,1715155848899,-500.0,0.00021369,2]
[326621827,1715155848908,-500.0,0.00021369,2]
[326621829,1715155848917,-500.0,0.00021369,2]
[326621831,1715155848927,-524.23022099,0.00021369,2]
[326621833,1715155848937,-420.82296052,0.00021369,2]
[326621864,1715155935696,5000.0,0.000211,9]
[326621865,1715156024054,154.62889066,0.00015,2]
[326621868,1715156231080,1493.78708353,9.999e-05,2]
[326621869,1715156252883,154.76784823,0.0001485,2]
[326621870,1715156254187,285.88496521,0.00015,2]
[326621871,1715156285282,166.03447125,0.00015,2]
[326621874,1715156513106,816.74367356,9.999e-05,2]
[326621880,1715156541362,465.25036391,9.999e-05,2]
[326621881,1715156562076,2520.32528191,9.999e-05,2]
[326621882,1715156615587,284.426094,9.999e-05,2]
[326621883,1715156719508,406.21744257,0.000137,2]
[326621885,1715156848698,-799.89118455,0.00015676,2]
[326621886,1715156906526,154.62889066,9.999e-05,2]
[326621887,1715156958037,-671.02480693,0.00015676,2]
[326621888,1715156958489,-159.71627091,0.00015676,2]
[326621889,1715156959145,-16.85248901,0.00015676,2]
[326621890,1715156960503,-250.0,0.00015677,2]
[326621891,1715156961714,-930.0843291,0.00015811,2]
[326621892,1715156962270,-280.314997,0.0001589,2]
[326621893,1715156962817,-894.24108922,0.00016,2]
[326621894,1715156963907,234.713472,0.0001589,2]
[326621895,1715156965052,-501.17283549,0.00016925,2]
[326621896,1715156965670,-154.79866913,0.00016925,2]
[326621897,1715156966530,-285.49026827,0.00016926,2]
[326621898,1715156967767,-24890.0,0.00016927,2]
[326621899,1715156968319,2601.38381956,0.00016438,2]
[326621902,1715157009034,1493.78708353,9.999e-05,2]
[326621903,1715157022815,43.74205709,0.00016276,2]
[326621904,1715157023350,106.25794291,0.00016276,2]
[326621909,1715157027368,150.0,0.00016276,2]
[326622109,1715157040360,-894.24108922,0.00017257,2]
[326622111,1715157040370,-769.97551352,0.00017258,2]
[326622114,1715157040380,-493.0,0.00017522,2]
[326622117,1715157040390,-150.545,0.00017522,2]
[326622120,1715157040400,-570.15764301,0.00017554,2]
[326622122,1715157040411,-818.20986133,0.00017555,2]
[326622125,1715157040421,-742.99804458,0.00017556,2]
[326622141,1715157040586,-1248.79654477,0.00017556,2]
[326622180,1715157044672,-22908.20541065,0.00017556,2]
[326622183,1715157044682,-379.96231687,0.00018,2]
[326622186,1715157044692,-201.618553,0.00018039,2]
[326622189,1715157044701,-444.85155138,0.00018364,2]
[326622192,1715157044711,-154.70605849,0.00018364,2]
[326622195,1715157044721,-604.62485122,0.00018899,2]
[326622198,1715157044733,-5397.88818522,0.000189,2]
[326622201,1715157044743,-154.90705577,0.00019,2]
[326622204,1715157044753,-189.64621981,0.00019,2]
[326622208,1715157044763,-234.6140841,0.00019078,2]
[326622212,1715157044772,-234.6140841,0.00019115,2]
[326622214,1715157044782,-234.6140841,0.00019153,2]
[326622216,1715157044793,-340.56,0.00019168,3]
[326622218,1715157044802,-959.61752831,0.00019176,2]
[326622220,1715157044812,-513.79200491,0.00019176,2]
[326622222,1715157044821,-462.28540603,0.00019176,2]
[326622224,1715157044831,-925.07979499,0.00019176,2]
[326622226,1715157044840,-1679.27061659,0.00019176,2]
[326622228,1715157044851,-156.18286297,0.00019176,2]
[326622230,1715157044860,-154.67517596,0.00019176,2]
[326622232,1715157044871,-185.53296356,0.00019176,2]
[326622234,1715157044880,-1468.93664472,0.00019176,2]
[326622236,1715157044891,-2151.93155539,0.00019177,2]
[326622238,1715157044901,-500.0,0.00019178,2]
[326622240,1715157044912,-501.02356683,0.00019178,2]
[326622242,1715157044921,-500.0,0.00019178,2]
[326622245,1715157044930,-500.9111384,0.00019178,2]
[326622247,1715157044940,-501.26712405,0.00019178,2]
[326622249,1715157044950,-500.57872132,0.00019178,2]
[326622251,1715157044960,-501.28894212,0.00019178,2]
[326622253,1715157044970,-500.0,0.00019178,2]
[326622255,1715157044980,-500.0,0.00019178,2]
[326622257,1715157044990,-500.0,0.00019178,2]
[326622259,1715157044999,-501.9872862,0.00019178,2]
[326622261,1715157045009,-500.0,0.00019178,2]
[326622263,1715157045018,-152.97621112,0.00019178,2]
[326622265,1715157045028,-500.0,0.00019178,2]
[326622267,1715157045041,-500.0,0.00019178,2]
[326622269,1715157045051,-500.76624404,0.00019178,2]
[326622271,1715157045061,-500.0,0.00019178,2]
[326622273,1715157045071,-500.0,0.00019178,2]
[326622275,1715157045083,-500.63832421,0.00019178,2]
[326622277,1715157045093,-500.0,0.00019178,2]
[326622279,1715157045103,-501.09445896,0.00019178,2]
[326622281,1715157045112,-225.8720251,0.00019178,2]
[326622283,1715157045121,-500.0,0.00019178,2]
[326622285,1715157045131,-493.03601682,0.00019178,2]
[326622287,1715157045141,-500.60166118,0.00019178,2]
[326622289,1715157045151,-500.0,0.00019178,2]
[326622291,1715157045161,-500.0,0.00019178,2]
[326622308,1715157045172,-500.67380525,0.00019178,2]
[326622311,1715157045348,-501.07841663,0.00019178,2]
[326622313,1715157045358,-500.0,0.00019178,2]
[326622315,1715157045367,-201.48237864,0.00019178,2]
[326622317,1715157045377,-500.0,0.00019178,2]
[326622319,1715157045388,-500.0,0.00019178,2]
[326622321,1715157045397,-500.0,0.00019178,2]
[326622323,1715157045407,-505.71944722,0.00019178,2]
[326622325,1715157045418,-500.96391688,0.00019178,2]
[326622327,1715157045428,-500.0,0.00019178,2]
[326622329,1715157045438,-500.0,0.00019178,2]
[326622331,1715157045447,-500.0,0.00019178,2]
[326622333,1715157045459,-500.73084899,0.00019178,2]
[326622336,1715157045469,-500.0,0.00019178,2]
[326622338,1715157045479,-500.0,0.00019178,2]
[326622340,1715157045489,-500.0,0.00019178,2]
[326622342,1715157045499,-500.0,0.00019178,2]
[326622344,1715157045508,-289.43591171,0.00019178,2]
[326622346,1715157045519,-500.0,0.00019178,2]
[326622348,1715157045528,-500.0,0.00019178,2]
[326622350,1715157045538,-500.0,0.00019178,2]
[326622352,1715157045548,-500.0,0.00019178,2]
[326622354,1715157045557,-500.0,0.00019178,2]
[326622356,1715157045568,-500.0,0.00019178,2]
[326622358,1715157045578,-500.0,0.00019178,2]
[326622360,1715157045587,-529.97977487,0.00019178,2]
[326622362,1715157045597,-529.97977487,0.00019178,2]
[326622364,1715157045608,-529.97977487,0.00019178,2]
[326622366,1715157045618,-529.97977487,0.00019178,2]
[326622368,1715157045628,-529.97977487,0.00019178,2]
[326622370,1715157045637,-529.97977487,0.00019178,2]
[326622372,1715157045649,-529.97977487,0.00019178,2]
[326622374,1715157045662,-529.97977487,0.00019178,2]
[326622376,1715157045672,-500.0,0.00019178,2]
[326622378,1715157045681,-500.0,0.00019178,2]
[326622380,1715157045691,-500.0,0.00019178,2]
[326622382,1715157045700,-500.0,0.00019178,2]
[326622384,1715157045710,-500.0,0.00019178,2]
[326622386,1715157045719,-500.0,0.00019178,2]
[326622388,1715157045728,-528.58509126,0.00019178,2]
[326622390,1715157045738,-528.58509126,0.00019178,2]
[326622392,1715157045747,-528.58509126,0.00019178,2]
[326622394,1715157045757,-528.58509126,0.00019178,2]
[326622396,1715157045766,-528.58509126,0.00019178,2]
[326622398,1715157045775,-500.0,0.00019178,2]
[326622399,1715157045784,-500.0,0.00019178,2]
[326622401,1715157045793,-500.0,0.00019178,2]
[326622404,1715157045804,-500.0,0.00019178,2]
[326622406,1715157045813,-500.0,0.00019178,2]
[326622408,1715157045823,-500.0,0.00019178,2]
[326622410,1715157045833,-525.23490406,0.00019178,2]
[326622411,1715157045842,-500.0,0.00019178,2]
[326622413,1715157045852,-525.23490406,0.00019178,2]
[326622416,1715157045862,-525.23490406,0.00019178,2]
[326622418,1715157045871,-525.23490406,0.00019178,2]
[326622419,1715157045881,-525.23490406,0.00019178,2]
[326622421,1715157045891,-500.0,0.00019178,2]
[326622422,1715157045900,-500.0,0.00019178,2]
[326622423,1715157045910,-500.0,0.00019178,2]
[326622424,1715157045921,-500.0,0.00019178,2]
[326622425,1715157045930,-500.0,0.00019178,2]
[326622426,1715157045939,-500.0,0.00019178,2]
[326622427,1715157045948,-529.10382188,0.00019178,2]
[326622428,1715157045958,-529.10382188,0.00019178,2]
[326622429,1715157045967,-529.10382188,0.00019178,2]
[326622430,1715157045977,-529.10382188,0.00019178,2]
[326622431,1715157045987,-529.10382188,0.00019178,2]
[326622432,1715157045996,-501.06724679,0.00019178,2]
[326622434,1715157046005,-529.10382188,0.00019178,2]
[326622435,1715157046015,-529.10382188,0.00019178,2]
[326622436,1715157046025,-529.10382188,0.00019178,2]
[326622438,1715157046035,-529.10382188,0.00019178,2]
[326622440,1715157046045,-500.0,0.00019178,2]
[326622442,1715157046054,-500.0,0.00019178,2]
[326622444,1715157046063,-500.0,0.00019178,2]
[326622446,1715157046072,-500.0,0.00019178,2]